Cogmind - Beta 13 @@@ ROGUE MODE // 2024.04.06 @ 17:03:26 Player: lrwhittaker Result: Self-destructed Performance ------------- Evolutions (1) 500 Regions Visited (3) 600 Robots Destroyed (22) 110 Value Destroyed (612) 612 Prototype IDs (0) 0 Alien Tech Used (0) 0 Bonus (0) 0 TOTAL SCORE: 1822 Bonus ------- None Cogmind --------- Core Integrity 153/400 Matter 252/400 Energy 100/100 System Corruption 0% Temperature Cool (6) Movement Core (400) Ox7 Location -9/Materials Parts ------- > --- POWER (1) -------- (None) > --- PROPULSION (3) --- (None) > --- UTILITY (3) ------ Large Storage Unit Medium Matter Pod Signal Interpreter > --- WEAPON (2) ------- (None) > --- INVENTORY (15) --- Light Ion Engine Light Ion Engine Light Ion Engine Heat Sink Structural Scanner Peak State ------------ > --- POWER ------------ Ion Engine > --- PROPULSION ------- Improved Treads Improved Treads Improved Treads > --- UTILITY ---------- Large Storage Unit Shield Generator > --- WEAPON ----------- Light Assault Rifle Light Cannon > --- INVENTORY -------- Light Ion Engine Light Ion Engine Light Ion Engine Improved Treads Heat Sink Medium Matter Pod Structural Scanner Signal Interpreter Assault Rifle [Rating: 13] Favorites ----------- Power Ion Engine Engine Ion Engine Propulsion Improved Treads Treads Improved Treads Leg Aluminum Leg Utility Large Storage Unit Device Heat Sink Storage Large Storage Unit Processor Signal Interpreter Weapon Light Assault Rifle Energy Gun EM Pulse Gun Ballistic Gun Light Assault Rifle Ballistic Cannon Light Cannon Build | -11 -10 -10 -9 ------- Run | Yrd Mat Min Mat Slots Evolved 2 | . . . 2 Power . | . . . . Propulsion 1 | . . . 1 Utility 1 | . . . 1 Weapon . | . . . . Parts Attached 23 | 6 12 . 5 Power 3 | 1 2 . . Engine 3 | 1 2 . . Core . | . . . . Reactor . | . . . . Propulsion 8 | 2 4 . 2 Treads 6 | . 4 . 2 Leg 2 | 2 . . . Wheel . | . . . . Hover . | . . . . Flight . | . . . . Utility 5 | 1 2 . 2 Device 2 | 1 1 . . Storage 2 | . 1 . 1 Processor 1 | . . . 1 Hackware . | . . . . Protection . | . . . . Artifact . | . . . . Weapon 7 | 2 4 . 1 Energy Gun 2 | 1 1 . . Energy Cannon . | . . . . Ballistic Gun 4 | 1 2 . 1 Ballistic Cannon 1 | . 1 . . Launcher . | . . . . Special Weapon . | . . . . Impact Weapon . | . . . . Slashing Weapon . | . . . . Piercing Weapon . | . . . . Special Melee Weapon . | . . . . Unidentified Prototypes . | . . . . Corrupted Parts 1 | 1 . . . System Corruption 4 | 4 . . . Parts Lost 10 | . 1 . 9 Power 1 | . . . 1 Propulsion 4 | . . . 4 Utility 1 | . . . 1 Weapon 4 | . 1 . 3 Highest Loss Streak 8 | . 1 . 8 To Critical Strikes . | . . . . Average Slot Usage (%) 96 | . 99 100 90 Engine 12 | . 14 14 9 Treads 26 | . 24 28 29 Leg 2 | . 3 . . Device 12 | . 14 14 7 Storage 13 | . 13 14 13 Processor 2 | . . . 10 Energy Gun 8 | . 12 . . Ballistic Gun 13 | . 14 14 10 Ballistic Cannon 3 | . . 14 9 Naked Turns . | . . . . Heaviest Build 31 | 7 31 31 31 Greatest Support 69 | 20 46 46 69 Greatest Overweight (x) 7 | . 1 . 7 Average Overweight (x) . | . . . . Largest Inventory Capacity 15 | 5 15 15 15 Average Capacity 13 | 5 14 15 15 Most Carried 10 | 1 10 10 9 Average Carried 5 | . 5 10 7 Final Capacity 15 | 5 15 15 15 Final Carried 10 | 1 10 10 5 Class Distribution -------------------- 100% | Mutant Dominant Class ---------------- Mutant | -10/Materials Mutant | -10/Mines Mutant | -9/Materials Resources | -11 -10 -10 -9 ----------- Run | Yrd Mat Min Mat Matter Collected 675 | 257 215 30 173 Remotely . | . . . . Salvage Created 578 | 44 318 . 216 Parts 33 | 1 20 . 12 Haulers Intercepted . | . . . . Recyclers Shooed 1 | . 1 . . Parts Field Recycled . | . . . . Retrieved Matter . | . . . . Parts Self-Destructed . | . . . . Prevented . | . . . . Kills | -11 -10 -10 -9 ------- Run | Yrd Mat Min Mat Combat Hostiles Destroyed 20 | 1 9 . 10 Melee 2 | . . . 2 Guns 9 | 1 5 . 3 Cannons 6 | . 1 . 5 AOE 3 | . 3 . . Classes Destroyed 5 | 1 3 . 1 Worker 1 | . 1 . . Watcher 1 | . 1 . . Swarmer 6 | . 3 . 3 Grunt 13 | 1 6 . 6 Duelist 1 | . . . 1 Best Kill Streak 3 | 1 3 . 3 Combat Bots Only 3 | 1 3 . 3 Max Kills in Single Turn 2 | 1 2 . 1 Gunslinging . | . . . . Exploded 2 | . 2 . . Melee 1 | . . . 1 Uniques/NPCs Destroyed . | . . . . Combat | -11 -10 -10 -9 -------- Run | Yrd Mat Min Mat Hostile Shots Fired 239 | 9 56 . 174 Missed 71 | 3 18 . 50 Damage Taken 1765 | 65 466 . 1234 Core 312 | . 65 . 247 Absorbed by Shields 158 | . 6 . 152 Core Remaining (%) 87 | 100 . 74 . Volleys Fired 98 | 7 41 . 50 Largest 2 | 2 2 . 2 Hottest 80 | 60 80 . 55 Shots Fired 184 | 14 82 . 88 Gun 144 | 14 80 . 50 Cannon 40 | . 2 . 38 Launcher . | . . . . Special . | . . . . Kinetic 164 | 7 69 . 88 Thermal . | . . . . Explosive . | . . . . Electromagnetic 20 | 7 13 . . Robot Hit Streak 8 | 3 8 . 7 Robot Miss Streak 4 | 3 4 . 4 Penetration Max . | . . . . Secondary Targets 1 | . 1 . . Max Gunslinging Chain 1 | . 1 . . Shots Hit Robots 108 | 7 47 . 54 Core Hits 39 | 2 19 . 18 Critical Kills 2 | . 2 . . Critical Parts Destroyed . | . . . . Critical Strikes 4 | . 3 . 1 Destroy 2 | . 2 . . Blast 2 | . 1 . 1 Melee Attacks . | . . . . Impact . | . . . . Slashing . | . . . . Piercing . | . . . . Sneak Attacks . | . . . . Combat Hostiles . | . . . . Follow-up Attacks . | . . . . Damage Inflicted 1461 | 93 633 . 735 Guns 825 | 93 472 . 260 Cannons 503 | . 40 . 463 Explosions 121 | . 121 . . Melee . | . . . . Ramming 12 | . . . 12 Kinetic 1190 | 25 442 . 723 Thermal 121 | . 121 . . Explosive . | . . . . Electromagnetic 138 | 68 70 . . Impact . | . . . . Slashing . | . . . . Piercing . | . . . . Highest Corruption 4 | 4 4 4 . Average Corruption 4 | 4 4 4 . Corruption Purged . | . . . . Corruption Blocked . | . . . . Effects 21 | 1 19 1 . Message Errors 2 | . 1 1 . Matter Fused 4 | . 4 . . Heat Flow Errors 2 | . 2 . . Energy Discharges 3 | . 3 . . Data Loss (minor) 4 | 1 3 . . Data Loss (major) 2 | . 2 . . Misfires 2 | . 2 . . Weapon Failures 2 | . 2 . . Overload Shots . | . . . . Overflow Damage . | . . . . Projectiles . | . . . . Explosions . | . . . . Melee . | . . . . Knockbacks 7 | . . . 7 Impact . | . . . . Kinetic 6 | . . . 6 Secondary 1 | . . . 1 Self-Inflicted Damage 31 | . 31 . . Shots 1 | . 1 . . Rammed 9 | . . . 9 Targets Rammed 11 | . . . 11 Kicked . | . . . . Crushed 2 | . . . 2 Highest Temperature 230 | 76 230 . 114 Average Temperature 40 | 42 75 . 26 Received Heat Transfer 883 | 36 227 . 620 Effects 2 | . 2 . . Interference 2 | . 2 . . Siege Activations . | . . . . Robots Corrupted . | . . . . Combat Hostiles . | . . . . Parts Fried . | . . . . Impact Corruptions . | . . . . Robots Melted . | . . . . Combat Hostiles . | . . . . Parts Melted . | . . . . Heat Transferred 150 | . 150 . . Parts Sabotaged . | . . . . Parts Stolen . | . . . . Parts Stripped . | . . . . Power Chain Reactions 3 | . 3 . . Alert | -11 -10 -10 -9 ------- Run | Yrd Mat Min Mat Peak Influence 259 | 20 167 64 259 Initial 64 | . 13 64 24 Average 90 | 2 77 64 157 Maximum Alert Level 1 | . . . 1 Low Security (%) 87 | 100 100 100 48 Level 1 12 | . . . 51 Level 2 . | . . . . Level 3 . | . . . . Level 4 . | . . . . Level 5 . | . . . . High Security . | . . . . Max Security . | . . . . Squads Dispatched 5 | . 2 . 3 Investigation 2 | . . . 2 Extermination . | . . . . Reinforcement 3 | . 2 . 1 Assault . | . . . . Garrison . | . . . . Intercept . | . . . . Searches Triggered . | . . . . Construction Impeded . | . . . . Haulers Reinforced . | . . . . Active Scanning Responses . | . . . . Cargo Convoy Interrupts . | . . . . Stealth | -11 -10 -10 -9 --------- Run | Yrd Mat Min Mat Distress Signals 2 | . 1 . 1 Communications Jammed . | . . . . Distress Signals . | . . . . Times Spotted 34 | 1 16 . 17 Peak Tracking Total 7 | 1 4 . 7 Tactical Retreats . | . . . . Traps | -11 -10 -10 -9 ------- Run | Yrd Mat Min Mat Traps Triggered 1 | . . . 1 Indirectly . | . . . . Trap Hack Attempts . | . . . . Triggered . | . . . . Disarmed . | . . . . Reprogrammed . | . . . . Reused . | . . . . Traps Extracted . | . . . . Installed . | . . . . Triggered . | . . . . Machines | -11 -10 -10 -9 ---------- Run | Yrd Mat Min Mat Machines Disabled 2 | . . . 2 Max in Single Turn 1 | . . . 1 Machines Repaired . | . . . . Machines Dismantled . | . . . . Machines Sabotaged . | . . . . Overloaded Fab Kills . | . . . . Hacking | -11 -10 -10 -9 --------- Run | Yrd Mat Min Mat Machines Accessed 4 | . 3 . 1 Terminals 4 | . 3 . 1 Fabricators . | . . . . Repair Stations . | . . . . Recycling Units . | . . . . Scanalyzers . | . . . . Garrison Access . | . . . . Total Hacks 11 | . 9 . 2 Successful 4 | . 4 . . Failed 6 | . 4 . 2 Catastrophic 1 | . . . 1 Database Lockouts 1 | . 1 . . Manual 7 | . 5 . 2 Terminals 11 | . 9 . 2 Fabricators . | . . . . Repair Stations . | . . . . Recycling Units . | . . . . Scanalyzers . | . . . . Garrison Access . | . . . . Terminal Hacks 4 | . 4 . . Record 2 | . 2 . . Branch Access Points 1 | . 1 . . Emergency Access Points 1 | . 1 . . Fabricator Hacks . | . . . . Repair Station Hacks . | . . . . Recycling Unit Hacks . | . . . . Scanalyzer . | . . . . Garrison Access Hacks . | . . . . Unauthorized Hacks . | . . . . Terminals . | . . . . Fabricators . | . . . . Repair Stations . | . . . . Recycling Units . | . . . . Scanalyzers . | . . . . Garrison Access . | . . . . Data Cores Recovered . | . . . . Used . | . . . . Hacking Detections 3 | . 2 . 1 Full Trace Events 1 | . . . 1 Feedback Events . | . . . . Feedback Blocked . | . . . . Robot Schematics Acquired . | . . . . Robots Built . | . . . . Authchips . | . . . . Time . | . . . . Total Robot Build Rating . | . . . . Part Schematics Acquired . | . . . . Parts Built . | . . . . Authchips . | . . . . Time . | . . . . Total Part Build Rating . | . . . . Parts Repaired . | . . . . Time . | . . . . Parts Recycled . | . . . . Recycled Matter . | . . . . Retrieved Matter . | . . . . Retrieved Components . | . . . . Parts Scanalyzed . | . . . . Part Schematics Acquired . | . . . . Parts Damaged . | . . . . Bothacking | -11 -10 -10 -9 ------------ Run | Yrd Mat Min Mat Used RIF Installer . | . . . . Robots Hacked . | . . . . Non-combat . | . . . . Combat . | . . . . Robot Hacks Applied . | . . . . Relay Couplers Released . | . . . . Fabnet Peak Effective % . | . . . . Robots Rewired . | . . . . Allies Hacked . | . . . . Hacks Repelled . | . . . . Allies | -11 -10 -10 -9 -------- Run | Yrd Mat Min Mat Total Allies . | . . . . Largest Group . | . . . . Highest-Rated Group . | . . . . Highest-Rated Ally . | . . . . Total Orders . | . . . . Ally Attacks . | . . . . Total Damage . | . . . . Kills . | . . . . Allies Corrupted . | . . . . Allies Melted . | . . . . Intel | -11 -10 -10 -9 ------- Run | Yrd Mat Min Mat Robot Analysis Total . | . . . . Derelict Logs Recovered . | . . . . Drone Launches . | . . . . Drone Recoveries . | . . . . Exploration | -11 -10 -10 -9 ------------- Run | Yrd Mat Min Mat Turns Passed 1186 | 92 751 55 288 Spaces Moved 542 | 61 369 35 77 Core 16 | 15 . . 1 Treads 448 | . 337 35 76 Legs 78 | 46 32 . . Wheels . | . . . . Hover . | . . . . Flight . | . . . . Fastest Speed 50 | 50 120 160 160 Average Speed 155 | 102 162 160 163 Slowest Speed 400 | 120 240 160 400 Overloaded Moves . | . . . . Propulsion Burnouts . | . . . . Robots Hopped . | . . . . Cave-ins Triggered . | . . . . Exploration Rate (%) 19 | 6 53 8 12 Regions Visited 3 Branch Regions 1 Pre-discovered Areas . | . . . . Known Exits Taken 1 | . 1 . . Unknown Exits Taken 2 | 1 . 1 . Scrap Searched 1 | . . 1 . Spaces Dug . | . . . . Terrain Destroyed 7 | . 7 . . Melee . | . . . . Projectile . | . . . . AOE 7 | . 7 . . Terrain Rammed . | . . . . Walls Destroyed . | . . . . Machines Disabled . | . . . . Actions | -11 -10 -10 -9 --------- Run | Yrd Mat Min Mat Total 702 | 74 444 34 150 Wait 9 | . 4 . 5 Move 539 | 60 368 34 77 Hop . | . . . . Pick Up 12 | 1 10 . 1 Fast Attach 10 | 6 4 . . Attach 6 | . 1 . 5 Detach 3 | . 3 . . Swap 7 | . 7 . . Drop 7 | . 6 . 1 Fire 98 | 7 41 . 50 Melee . | . . . . Ram 2 | . . . 2 Kick . | . . . . Crush 9 | . . . 9 Escape Stasis . | . . . . Rewire . | . . . . Trap . | . . . . Miscellaneous . | . . . . Route ------- -11/Scrapyard -10/Materials (discovered 3 exits: *Mat / *Min x2) -10/Mines -9/Materials History --------- Turn | Location | Event 2 | -11/Scrapyard | Met Revision 17 59 | -11/Scrapyard | Discovered new exit (range 8) 93 | -11/Scrapyard | Entered Materials 167 | -10/Materials | Central database locked down 306 | -10/Materials | Build established: Mutant 781 | -10/Materials | Discovered new exit (range 14) 793 | -10/Materials | Identified exit to Mines 844 | -10/Materials | Entered Mines 872 | -10/Mines | Discovered new exit (range 12) 899 | -10/Mines | Entered Materials 899 | -9/Materials | Evolved 2 slots: Propulsion x1, Utility x1 1168 | -9/Materials | Core integrity fell below 50% 1187 | -9/Materials | Self-destructed Last Messages --------------- 01133_ Imp. Treads destroyed. 01138_ G-34 Mercenary destroyed. 01140_ Crushed G-34 Mercenary. 01140_ G-34 Mercenary destroyed. 01141_ Ion Engine destroyed. 01141_ Slammed into G-34 Mercenary. 01142_ Acquired 49 matter. 01143_ Slammed into G-34 Mercenary. 01145_ Acquired 2 matter. 01146_ Slammed into G-34 Mercenary. 01149_ Crushed G-34 Mercenary. 01149_ G-34 Mercenary destroyed. 01150_ Acquired 7 matter. 01151_ Imp. Treads destroyed. 01163_ Slammed into G-34 Mercenary. 01165_ Imp. Treads destroyed. 01166_ Slammed into G-34 Mercenary. 01167_ G-34 Mercenary destroyed. 01170_ Slammed into G-34 Mercenary. 01185_ Lgt. Assault Rifle destroyed. Map ----- +----------------------------------------------------+ | ?????????????????????????????????????????? | | ?????????????????????????????????????????? | | ?????????????????????????????????????????? | | ?????????????????????????????????????????? | | ?????????????????????????????????????????? | | ?????????????????????????????????????????? | | ?????????????????????????????????????????? | | ?????????????????????????????????????????? | | ?????????????????????????????????????????? | | ?????????????????????????????????????????? | | ?????????????????????????????????????????? | | ?????????????????????????????????????????? | | ?????????????????????????????????????????? | | ?????????????????????????????????????????? | | ?????????????????????????????????????????? | | ?????????????????????????????????????????? | | ?????????????????????????????????????????? | | ?????????????????????????????????????????? | | ?????????????????????########????????????? | | ?????????????????????# #????????????? | | ?????????????????????# #????????????? | | ?????????????????????# """ #????????????? | | ?????????????????????# """ #????????????? | | ?????????????????????# """ #????????????? | | ?###########+###?????# = #????????????? | | ^ ##########@###########????? | | %% #????? | | g g #????? | | %% % #????? | | " """ """ ###+######+###########????? | | " """ """ ## # #????????????? | | " """ """ ## ! # #????????????? | | ## # """ #????????????? | | ## # """ #????????????? | | ??# """ ## # """ #????????????? | | ??# """ !## # #????????????? | | ??# """ =%##! #####+##????????????? | | ??# *%! !## #???# #?????????????? | | ??# | =[## #???# #?????????????? | | ??# "" =!#######???# #?????????????? | | ??# """ #?????????# #?????????????? | | ??# """ % #?????????# #?????????????? | | ??# =* %#??###????# #?????????????? | | ??# = ####T###### #?????????????? | | ??# """ "" %% ###???????????? | | ??# """ "" % % #???????????? | | ? + """ """ % %=%= + ?????????? | | # % * # ""??????? | | ?# #? """?????? | | ??# ################ #?? ""?????? | +----------------------------------------------------+ Best States ------------- Heat Dissipation 35 Energy Generation 10 Energy Capacity 250 Matter Stores 300 Matter Capacity 400 Sight Range 16 Terrain Scan Density 10 Evasion (%) 55 Recoil Reduction 3 Item Schematics ----------------- None Robot Schematics ------------------ None Fabricated ------------ Nothing Alien Tech Used ----------------- None Achievements -------------- None Challenges ------------ None Game ------ Seed CannonFrostCasing Manual? 0 Play Time 00:29:47 Cumulative 3.6 hours Start 2024.04.06 @ 16:32:43 End 2024.04.06 @ 17:03:26 Sessions 2 Manual Loads 0 Difficulty Rogue Special Mode None Game No. 3 Rogue 3 Adventurer 0 Explorer 0 Win Type - Total 0 Types 0/0/0/0/0/0/0/0/0 Lore% 1 Gallery% 7 Achievement% 7 Wizard Run 0 Options --------- Layout 0 ASCII 0 Keyboard 0 Movement Mouse Keybinds 0 Fullscreen 1 Font 18/SmallcapsGlow Map View 38x25 Zoom Use 53% Tactical HUD 1 Map Filters NONE Filters NONE Steam 1 RUN: 41b79c70-f8ea-4635-bf5b-df348262557a